fUST/lending_fUST_20240805
["ID","MTS","AMOUNT","RATE_DAILY","PERIOD"]
[334139028,1722793837070,906.13882029,0.00027397,120]
[334139075,1722793840667,-254.05169593,9.41e-05,2]
[334139077,1722793840678,-156.06772957,9.41e-05,2]
[334139079,1722793840687,-12991.7699473,9.471e-05,2]
[334139094,1722793840831,-2741.59999999,9.471e-05,2]
[334139099,1722793840843,-2673.6,9.471e-05,2]
[334139102,1722793840855,-1340.01236919,9.471e-05,2]
[334139105,1722793840863,-178.32783823,9.566e-05,2]
[334139134,1722793841140,-241.59271007,9.566e-05,2]
[334139136,1722793841149,-3016.6472157,9.986e-05,2]
[334139138,1722793841157,-164.72469407,9.999e-05,2]
[334139140,1722793841166,-274.44831486,9.999e-05,2]
[334139142,1722793841175,-155.96369074,9.999e-05,2]
[334139144,1722793841184,-413.56025777,9.999e-05,2]
[334139146,1722793841193,-224.13908649,9.999e-05,2]
[334139147,1722793841202,-157.80579925,9.999e-05,2]
[334139149,1722793841211,-521.67506793,9.999e-05,2]
[334139151,1722793841221,-300.99621399,9.999e-05,2]
[334139153,1722793841230,-154.77557542,9.999e-05,2]
[334139155,1722793841239,-523.06806918,9.999e-05,2]
[334139157,1722793841248,-154.79103211,9.999e-05,2]
[334139159,1722793841257,-154.79103211,9.999e-05,2]
[334139161,1722793841266,-154.79103211,9.999e-05,2]
[334139163,1722793841275,-494.23715236,9.999e-05,2]
[334139165,1722793841284,-244.84557874,9.999e-05,2]
[334139167,1722793841293,-154.8391244,9.999e-05,2]
[334139169,1722793841302,-256.64294795,9.999e-05,2]
[334139171,1722793841311,-154.79103211,9.999e-05,2]
[334139173,1722793841320,-305.40389043,9.999e-05,2]
[334139175,1722793841329,-154.79103211,9.999e-05,2]
[334139177,1722793841339,-154.79103211,9.999e-05,2]
[334139179,1722793841349,-66.13841799,0.00010417,2]
[334139182,1722793841371,-291.3048,0.00010417,2]
[334139184,1722793841383,-62.55678201,0.00010417,2]
[334139186,1722793841391,-420.0,0.00010417,2]
[334139188,1722793841400,-250.0,0.0001059,2]
[334139190,1722793841410,-159.83522761,0.00010597,2]
[334139192,1722793841419,-313.83245638,0.00010597,2]
[334139194,1722793841430,-4398.93110825,0.00010597,2]
[334139196,1722793841439,-307.16853799,0.00010597,2]
[334139198,1722793841450,-16288.37255921,0.00010597,2]
[334139200,1722793841459,-171.98294997,0.00010597,2]
[334139465,1722793843645,-340.0,0.00014,14]
[334139616,1722793845272,-348.0,9.376e-05,2]
[334139619,1722793845285,-11648.78164923,9.376e-05,2]
[334139621,1722793845295,-154.79103211,9.999e-05,2]
[334139622,1722793845305,-1154.73274342,0.00010597,2]
[334139623,1722793845315,-959.71445307,0.00010597,2]
[334139624,1722793845324,-250.0,0.00010619,2]
[334139625,1722793845334,-250.0,0.00010648,2]
[334139626,1722793845344,-250.0,0.00010677,2]
[334139627,1722793845355,-250.0,0.00010706,2]
[334139628,1722793845364,-250.0,0.00010735,2]
[334139629,1722793845375,-250.0,0.00010764,2]
[334139630,1722793845386,-250.0,0.00010793,2]
[334139631,1722793845396,-250.0,0.00010822,2]
[334139632,1722793845406,-250.0,0.00010851,2]
[334139633,1722793845416,-250.0,0.0001088,2]
[334139634,1722793845426,-250.0,0.00010909,2]
[334139635,1722793845436,-250.0,0.00010938,2]
[334139636,1722793845447,-2042.97,0.00010959,2]
[334139637,1722793845456,-1461.78499034,0.00010959,2]
[334139638,1722793845476,-448.280348,0.00010959,2]
[334139639,1722793845488,-120.41466166,0.00010959,2]
[334139640,1722793845497,-1692.07,0.00010959,2]
[334139641,1722793845507,-228.31757914,0.00010959,2]
[334139652,1722793845769,-3776.426534,0.00010597,2]
[334139654,1722793845780,-1181.74242086,0.00010959,2]
[334139656,1722793845791,-1410.06,0.00010959,2]
[334139658,1722793845802,-250.0,0.00010967,2]
[334139660,1722793845812,-250.0,0.00010996,2]
[334139662,1722793845824,-76.37104514,0.00011025,2]
[334139667,1722793845873,-173.62895486,0.00011025,2]
[334139669,1722793845884,-250.0,0.00011054,2]
[334139682,1722793846042,-250.0,0.00011083,2]
[334139685,1722793846063,-250.0,0.00011112,2]
[334139688,1722793846083,-250.0,0.00011141,2]
[334139691,1722793846104,-587.0,0.00011459,2]
[334139694,1722793846126,-587.0,0.00011459,2]
[334139696,1722793846147,-185.42088534,0.00012,2]
[334139698,1722793846162,-158.3501598,0.00012604,2]
[334139700,1722793846191,-664.6498402,0.00012604,2]
[334139702,1722793846200,-136.3501598,0.00012604,2]
[334139704,1722793846212,-686.6498402,0.00012604,2]
[334139706,1722793846221,-641.77838936,0.0001329,2]
[334139708,1722793846230,-6355.37449435,0.00013445,2]
[334139710,1722793846239,-367.88690048,0.00013466,2]
[334139712,1722793846249,-4052.39099191,0.00013489,2]
[334139714,1722793846260,-4174.43598295,0.00013588,2]
[334139716,1722793846269,-4174.43598293,0.00013591,2]
[334139718,1722793846278,-4174.43598293,0.00013593,2]
[334139719,1722793846288,-4174.43598293,0.00013596,2]
[334139720,1722793846297,-4174.43598293,0.00013598,2]
[334139722,1722793846306,-6074.9754707,0.00013598,2]
[334139724,1722793846316,-31935.0230867,0.00013688,2]
[334139726,1722793846325,-88007.07551117,0.00013688,2]
[334139729,1722793846344,-263.52774287,0.00013688,2]
[334139876,1722793847802,-52985.21880133,0.00013688,2]
[334139878,1722793847815,-5362.00000002,0.00013688,2]
[334139881,1722793847832,-672.0,0.00013688,2]
[334139894,1722793847948,-5760.0,0.00013688,2]
[334139897,1722793847959,-6625.29337861,0.00013688,2]
[334139899,1722793847968,-1233.75,0.00013697,2]
[334139902,1722793847977,-1233.75,0.00013697,2]
[334139904,1722793847986,-1233.75,0.00013697,2]
[334139906,1722793847995,-1233.75,0.00013697,2]
[334139908,1722793848006,-20348.22429189,0.00013698,5]
[334139910,1722793848015,-12925.79562367,0.00013698,5]
[334139912,1722793848024,-1880.67694903,0.00013698,2]
[334139914,1722793848033,-1627.80034441,0.00013698,2]
[334139916,1722793848043,-3039.86029914,0.00013698,2]
[334139918,1722793848052,-500.0,0.00013698,2]
[334139919,1722793848061,-252.46160967,0.00013698,2]
[334139921,1722793848071,-500.0,0.00013698,2]
[334139923,1722793848080,-500.0,0.00013698,2]
[334139925,1722793848089,-260.49425029,0.00013698,2]
[334139927,1722793848100,-583.0711377,0.00013698,2]
[334139929,1722793848109,-500.95180688,0.00013698,2]
[334139931,1722793848118,-505.31740955,0.00013698,2]
[334139933,1722793848128,-504.78515738,0.00013698,2]
[334139935,1722793848137,-504.50264457,0.00013698,2]
[334139937,1722793848147,-500.0,0.00013698,2]
[334139939,1722793848156,-512.45681277,0.00013698,2]
[334139941,1722793848166,-500.0,0.00013698,2]
[334139943,1722793848175,-500.0,0.00013698,2]
[334139945,1722793848184,-500.0,0.00013698,2]
[334139947,1722793848193,-198.83,0.00013698,2]
[334139949,1722793848202,-549.1402638,0.00013698,2]
[334139951,1722793848211,-500.0,0.00013698,2]
[334139953,1722793848221,-607.03107536,0.00013698,2]
[334139955,1722793848230,-500.0,0.00013698,2]
[334139956,1722793848239,-508.42946607,0.00013698,2]
[334139958,1722793848253,-500.0,0.00013698,2]
[334139960,1722793848264,-500.0,0.00013698,2]
[334139962,1722793848274,-500.6408359,0.00013698,2]
[334139964,1722793848283,-503.39811253,0.00013698,2]
[334139966,1722793848296,-501.65131095,0.00013698,2]
[334139968,1722793848305,-507.58705273,0.00013698,2]
[334139969,1722793848314,-500.0,0.00013698,2]
[334139970,1722793848324,-503.98290407,0.00013698,2]
[334139971,1722793848333,-563.86018094,0.00013698,2]
[334139972,1722793848342,-503.02762974,0.00013698,2]
[334139973,1722793848351,-532.72,0.00013698,2]
[334139974,1722793848360,-500.0,0.00013698,2]
[334139975,1722793848369,-501.53237922,0.00013698,2]
[334139976,1722793848379,-504.50018579,0.00013698,2]
[334139977,1722793848388,-500.0,0.00013698,2]
[334139979,1722793848399,-500.0,0.00013698,2]
[334139981,1722793848408,-508.29559983,0.00013698,2]
[334139983,1722793848417,-501.67144228,0.00013698,2]
[334139985,1722793848426,-504.73228027,0.00013698,2]
[334139987,1722793848435,-512.13940254,0.00013698,2]
[334139989,1722793848446,-500.0,0.00013698,2]
[334139991,1722793848455,-500.0,0.00013698,2]
[334139993,1722793848464,-500.0,0.00013698,2]
[334139995,1722793848474,-500.0,0.00013698,2]
[334139997,1722793848483,-416.46218863,0.00013698,2]
[334139999,1722793848492,-500.0,0.00013698,2]
[334140001,1722793848501,-500.0,0.00013698,2]
[334140003,1722793848511,-500.0,0.00013698,2]
[334140005,1722793848521,-500.0,0.00013698,2]
[334140007,1722793848530,-501.89706402,0.00013698,2]
[334140009,1722793848539,-202.02922801,0.00013698,2]
[334140011,1722793848549,-500.0,0.00013698,2]
[334140013,1722793848559,-500.0,0.00013698,2]
[334140015,1722793848568,-500.0,0.00013698,2]
[334140017,1722793848577,-502.13770688,0.00013698,2]
[334140019,1722793848586,-528.87956621,0.00013698,2]
[334140021,1722793848595,-502.95494964,0.00013698,2]
[334140023,1722793848605,-288.21348595,0.00013698,2]
[334140025,1722793848615,-500.0,0.00013698,2]
[334140027,1722793848624,-502.28954742,0.00013698,2]
[334140029,1722793848635,-509.736964,0.00013698,2]
[334140031,1722793848644,-500.0,0.00013698,2]
[334140033,1722793848653,-500.0,0.00013698,2]
[334140035,1722793848663,-500.0,0.00013698,2]
[334140037,1722793848672,-500.0,0.00013698,2]
[334140039,1722793848681,-500.0,0.00013698,2]
[334140041,1722793848690,-500.0,0.00013698,2]
[334140043,1722793848700,-500.0,0.00013698,2]
[334140045,1722793848709,-500.0,0.00013698,2]
[334140047,1722793848723,-500.0,0.00013698,2]
[334140049,1722793848733,-500.0,0.00013698,2]
[334140051,1722793848742,-500.0,0.00013698,2]
[334140053,1722793848761,-500.0,0.00013698,2]
[334140055,1722793848770,-500.0,0.00013698,2]
[334140057,1722793848781,-500.0,0.00013698,2]
[334140059,1722793848794,-564.35422041,0.00013698,2]
[334140061,1722793848803,-500.0,0.00013698,2]
[334140063,1722793848813,-500.0,0.00013698,2]
[334140065,1722793848822,-500.0,0.00013698,2]
[334140067,1722793848831,-504.89714018,0.00013698,2]
[334140069,1722793848840,-500.0,0.00013698,2]
[334140070,1722793848849,-500.0,0.00013698,2]
[334140072,1722793848858,-415.92558544,0.00013698,2]
[334140074,1722793848867,-506.94098192,0.00013698,2]
[334140076,1722793848876,-500.0,0.00013698,2]
[334140078,1722793848885,-500.0,0.00013698,2]
[334140080,1722793848894,-227.14886604,0.00013698,2]
[334140081,1722793848903,-520.05,0.00013698,2]
[334140082,1722793848912,-500.0,0.00013698,2]
[334140084,1722793848921,-500.0,0.00013698,2]
[334140086,1722793848930,-410.44593988,0.00013698,2]
[334140087,1722793848939,-500.0,0.00013698,2]
[334140088,1722793848949,-500.0,0.00013698,2]
[334140089,1722793848958,-503.14008493,0.00013698,2]
[334140091,1722793848967,-500.0,0.00013698,2]
[334140093,1722793848976,-500.0,0.00013698,2]
[334140095,1722793848985,-500.0,0.00013698,2]
[334140097,1722793848994,-1179.45,0.00013698,2]
[334140099,1722793849004,-500.0,0.00013698,2]
[334140101,1722793849013,-216.54262552,0.00013698,2]
[334140103,1722793849021,-500.0,0.00013698,2]
[334140105,1722793849031,-500.0,0.00013698,2]
[334140107,1722793849040,-346.28686281,0.00013698,2]
[334140109,1722793849049,-500.0,0.00013698,2]
[334140110,1722793849058,-500.0,0.00013698,2]
[334140112,1722793849067,-500.0,0.00013698,2]
[334140114,1722793849076,-500.0,0.00013698,2]
[334140116,1722793849085,-502.33018296,0.00013698,2]
[334140118,1722793849095,-214.16091081,0.00013698,2]
[334140120,1722793849104,-502.18283104,0.00013698,2]
[334140122,1722793849113,-521.0877309,0.00013698,2]
[334140124,1722793849122,-500.0,0.00013698,2]
[334140126,1722793849132,-500.0,0.00013698,2]
[334140128,1722793849141,-500.0,0.00013698,2]
[334140130,1722793849150,-500.0,0.00013698,2]
[334140132,1722793849159,-505.99342401,0.00013698,2]
[334140134,1722793849168,-743.76,0.00013698,2]
[334140136,1722793849177,-500.0,0.00013698,2]
[334140138,1722793849186,-500.0,0.00013698,2]
[334140140,1722793849196,-287.43171298,0.00013698,2]
[334140141,1722793849206,-500.0,0.00013698,2]
[334140143,1722793849215,-500.0,0.00013698,2]
[334140145,1722793849224,-500.0,0.00013698,2]
[334140147,1722793849233,-500.0,0.00013698,2]
[334140149,1722793849243,-545.07302004,0.00013698,2]
[334140151,1722793849263,-500.87043241,0.00013698,2]
[334140153,1722793849277,-500.0,0.00013698,2]
[334140155,1722793849286,-500.0,0.00013698,2]
[334140157,1722793849295,-500.0,0.00013698,2]
[334140159,1722793849303,-500.0,0.00013698,2]
[334140161,1722793849312,-502.93737006,0.00013698,2]
[334140163,1722793849321,-500.0,0.00013698,2]
[334140165,1722793849332,-503.37651709,0.00013698,2]
[334140167,1722793849341,-500.0,0.00013698,2]
[334140168,1722793849350,-151.0,0.00013698,2]
[334140170,1722793849359,-500.0,0.00013698,2]
[334140173,1722793849369,-501.92902515,0.00013698,2]
[334140174,1722793849379,-500.0,0.00013698,2]
[334140176,1722793849388,-500.0,0.00013698,2]
[334140178,1722793849399,-391.20298666,0.00013698,2]
[334140180,1722793849408,-500.0,0.00013698,2]
[334140182,1722793849417,-500.0,0.00013698,2]
[334140184,1722793849427,-151.0,0.00013698,2]
[334140186,1722793849436,-500.0,0.00013698,2]
[334140187,1722793849446,-503.97916416,0.00013698,2]
[334140189,1722793849457,-502.30572852,0.00013698,2]
[334140191,1722793849466,-502.05593954,0.00013698,2]
[334140193,1722793849476,-501.51359622,0.00013698,2]
[334140195,1722793849486,-500.0,0.00013698,2]
[334140197,1722793849496,-151.0,0.00013698,2]
[334140199,1722793849519,-500.0,0.00013698,2]
[334140201,1722793849528,-151.0,0.00013698,2]
[334140203,1722793849538,-500.0,0.00013698,2]
[334140205,1722793849548,-237.209571,0.00013698,2]
[334140207,1722793849558,-500.0,0.00013698,2]
[334140209,1722793849567,-500.0,0.00013698,2]
[334140211,1722793849577,-500.0,0.00013698,2]
[334140213,1722793849587,-501.73103367,0.00013698,2]
[334140215,1722793849597,-500.0,0.00013698,2]
[334140217,1722793849607,-151.0,0.00013698,2]
[334140219,1722793849617,-500.70328412,0.00013698,2]
[334140221,1722793849627,-501.75039676,0.00013698,2]
[334140223,1722793849637,-500.0,0.00013698,2]
[334140225,1722793849647,-500.0,0.00013698,2]
[334140227,1722793849657,-151.0,0.00013698,2]
[334140229,1722793849666,-500.0,0.00013698,2]
[334140231,1722793849676,-151.0,0.00013698,2]
[334140233,1722793849690,-207.232656,0.00013698,2]
[334140235,1722793849699,-500.0,0.00013698,2]
[334140237,1722793849709,-500.0,0.00013698,2]
[334140239,1722793849720,-500.0,0.00013698,2]
[334140241,1722793849730,-151.0,0.00013698,2]
[334140243,1722793849742,-500.0,0.00013698,2]
[334140245,1722793849763,-500.0,0.00013698,2]
[334140247,1722793849772,-500.7670819,0.00013698,2]
[334140249,1722793849782,-500.0,0.00013698,2]
[334140251,1722793849791,-500.0,0.00013698,2]
[334140253,1722793849800,-500.0,0.00013698,2]
[334140255,1722793849810,-578.75,0.00013698,2]
[334140257,1722793849820,-500.0,0.00013698,2]
[334140259,1722793849830,-503.36851869,0.00013698,2]
[334140261,1722793849840,-500.0,0.00013698,2]
[334140263,1722793849849,-500.0,0.00013698,2]
[334140265,1722793849859,-500.0,0.00013698,2]
[334140267,1722793849870,-500.0,0.00013698,2]
[334140280,1722793849975,-501.40711586,0.00013698,2]
[334140282,1722793849984,-500.0,0.00013698,2]
[334140284,1722793849994,-500.0,0.00013698,2]
[334140286,1722793850016,-500.0,0.00013698,2]
[334140288,1722793850025,-426.85796299,0.00013698,2]
[334140290,1722793850034,-500.0,0.00013698,2]
[334140292,1722793850044,-500.22886185,0.00013698,2]
[334140294,1722793850053,-500.0,0.00013698,2]
[334140296,1722793850062,-151.0,0.00013698,2]
[334140298,1722793850072,-151.0,0.00013698,2]
[334140300,1722793850082,-1108.97,0.00013698,2]
[334140302,1722793850091,-500.0,0.00013698,2]
[334140304,1722793850101,-197.90671337,0.00013698,2]
[334140306,1722793850111,-362.94441921,0.00013698,2]
[334140308,1722793850121,-151.0,0.00013698,2]
[334140310,1722793850130,-500.0,0.00013698,2]
[334140312,1722793850140,-506.08444621,0.00013698,2]
[334140314,1722793850149,-500.0,0.00013698,2]
[334140316,1722793850158,-500.0,0.00013698,2]
[334140318,1722793850167,-505.24,0.00013698,2]
[334140320,1722793850176,-3929.87,0.00013698,2]
[334140322,1722793850185,-500.0,0.00013698,2]
[334140324,1722793850195,-500.0,0.00013698,2]
[334140326,1722793850204,-1123.2,0.00013698,2]
[334140328,1722793850215,-500.0,0.00013698,2]
[334140330,1722793850224,-1915.27,0.00013698,2]
[334140332,1722793850233,-173.96697217,0.00013698,2]
[334140334,1722793850243,-500.0,0.00013698,2]
[334140336,1722793850267,-500.0,0.00013698,2]
[334140338,1722793850276,-500.0,0.00013698,2]
[334140340,1722793850285,-308.73451556,0.00013698,2]
[334140341,1722793850295,-500.0,0.00013698,2]
[334140343,1722793850304,-499.30609368,0.00013698,2]
[334140345,1722793850313,-500.0,0.00013698,2]
[334140347,1722793850323,-404.55003,0.00013698,2]
[334140349,1722793850332,-404.55003,0.00013698,2]
[334140351,1722793850341,-500.0,0.00013698,2]
[334140353,1722793850351,-500.0,0.00013698,2]
[334140355,1722793850361,-500.0,0.00013698,2]
[334140357,1722793850370,-500.0,0.00013698,2]
[334140359,1722793850380,-500.0,0.00013698,2]
[334140360,1722793850388,-500.0,0.00013698,2]
[334140361,1722793850398,-500.0,0.00013698,2]
[334140362,1722793850407,-404.55003,0.00013698,2]
[334140364,1722793850417,-303.59071256,0.00013698,2]
[334140366,1722793850426,-404.55003,0.00013698,2]
[334140368,1722793850435,-500.0,0.00013698,2]
[334140370,1722793850445,-500.0,0.00013698,2]
[334140372,1722793850454,-500.0,0.00013698,2]
[334140374,1722793850463,-2068.16,0.00013698,2]
[334140376,1722793850473,-427.019942,0.00013698,2]
[334140378,1722793850482,-500.0,0.00013698,2]
[334140380,1722793850491,-625.09392718,0.00013698,2]
[334140382,1722793850512,-427.019942,0.00013698,2]
[334140384,1722793850522,-764.95,0.00013698,2]
[334140386,1722793850532,-500.0,0.00013698,2]
[334140388,1722793850541,-500.0,0.00013698,2]
[334140390,1722793850551,-427.019942,0.00013698,2]
[334140392,1722793850561,-427.019942,0.00013698,2]
[334140393,1722793850572,-780.56,0.00013698,2]
[334140396,1722793850582,-609.85,0.00013698,2]
[334140397,1722793850591,-500.0,0.00013698,2]
[334140400,1722793850601,-500.0,0.00013698,2]
[334140402,1722793850610,-166.698216,0.00013698,2]
[334140404,1722793850620,-166.698216,0.00013698,2]
[334140406,1722793850629,-500.0,0.00013698,2]
[334140408,1722793850638,-196.411418,0.00013698,2]
[334140410,1722793850648,-196.411418,0.00013698,2]
[334140412,1722793850659,-166.698216,0.00013698,2]
[334140414,1722793850669,-20300.14249704,0.00013698,2]
[334140416,1722793850678,-166.698216,0.00013698,2]
[334140418,1722793850688,-507.625332,0.00013698,2]
[334140420,1722793850698,-196.411418,0.00013698,2]
[334140422,1722793850709,-500.0,0.00013698,2]
[334140424,1722793850720,-196.411418,0.00013698,2]
[334140426,1722793850730,-551.91,0.00013698,2]
[334140428,1722793850743,-500.0,0.00013698,2]
[334140430,1722793850752,-500.0,0.00013698,2]
[334140432,1722793850762,-500.0,0.00013698,2]
[334140434,1722793850772,-500.0,0.00013698,2]
[334140436,1722793850781,-151.684119,0.00013698,2]
[334140438,1722793850791,-1193.53,0.00013698,2]
[334140440,1722793850800,-185.449635,0.00013698,2]
[334140442,1722793850809,-185.449635,0.00013698,2]
[334140444,1722793850818,-500.0,0.00013698,2]
[334140446,1722793850828,-185.449635,0.00013698,2]
[334140448,1722793850837,-185.449635,0.00013698,2]
[334140450,1722793850846,-554.35,0.00013698,2]
[334140452,1722793850855,-225.04706201,0.00013698,2]
[334140454,1722793850865,-307.89952846,0.00013698,2]
[334140456,1722793850874,-639.35,0.00013698,2]
[334140458,1722793850883,-800.03,0.00013698,2]
[334140460,1722793850892,-500.0,0.00013698,2]
[334140462,1722793850901,-1693.19,0.00013698,2]
[334140464,1722793850910,-500.0,0.00013698,2]
[334140466,1722793850920,-500.0,0.00013698,2]
[334140467,1722793850929,-987.35,0.00013698,2]
[334140469,1722793850938,-500.0,0.00013698,2]
[334140471,1722793850947,-580.11517769,0.00013698,2]
[334140473,1722793850956,-500.0,0.00013698,2]
[334140475,1722793850965,-500.0,0.00013698,2]
[334140477,1722793850975,-723.12,0.00013698,2]
[334140479,1722793850984,-500.0,0.00013698,2]
[334140481,1722793850993,-500.0,0.00013698,2]
[334140483,1722793851013,-500.0,0.00013698,2]
[334140485,1722793851022,-380.463093,0.00013698,2]
[334140487,1722793851032,-380.463093,0.00013698,2]
[334140489,1722793851042,-500.0,0.00013698,2]
[334140491,1722793851053,-500.0,0.00013698,2]
[334140493,1722793851062,-506.46612656,0.00013698,2]
[334140495,1722793851071,-500.0,0.00013698,2]
[334140497,1722793851080,-500.0,0.00013698,2]
[334140499,1722793851090,-1166.64,0.00013698,2]
[334140502,1722793851099,-500.0,0.00013698,2]
[334140503,1722793851108,-380.463093,0.00013698,2]
[334140505,1722793851117,-380.463093,0.00013698,2]
[334140507,1722793851126,-500.0,0.00013698,2]
[334140509,1722793851135,-500.0,0.00013698,2]
[334140511,1722793851145,-151.0,0.00013698,2]
[334140513,1722793851155,-500.0,0.00013698,2]
[334140515,1722793851164,-151.0,0.00013698,2]
[334140517,1722793851174,-500.0,0.00013698,2]
[334140519,1722793851183,-500.0,0.00013698,2]
[334140521,1722793851193,-500.0,0.00013698,2]
[334140523,1722793851202,-500.0,0.00013698,2]
[334140525,1722793851211,-500.0,0.00013698,2]
[334140527,1722793851222,-151.0,0.00013698,2]
[334140530,1722793851231,-151.0,0.00013698,2]
[334140532,1722793851240,-500.0,0.00013698,2]
[334140533,1722793851259,-500.0,0.00013698,2]
[334140535,1722793851268,-151.0,0.00013698,2]
[334140537,1722793851278,-151.0,0.00013698,2]
[334140540,1722793851288,-500.0,0.00013698,2]
[334140542,1722793851297,-500.0,0.00013698,2]
[334140544,1722793851307,-500.0,0.00013698,2]
[334140546,1722793851316,-1023.44,0.00013698,2]
[334140548,1722793851325,-500.0,0.00013698,2]
[334140550,1722793851334,-500.0,0.00013698,2]
[334140552,1722793851345,-177.52700457,0.00013698,2]
[334140554,1722793851354,-206.25898401,0.00013698,2]
[334140556,1722793851364,-580.5,0.00013698,2]
[334140558,1722793851373,-517.56785215,0.00013698,2]
[334140560,1722793851383,-500.0,0.00013698,2]
[334140562,1722793851392,-3549.82,0.00013698,2]
[334140564,1722793851401,-580.47,0.00013698,2]
[334140566,1722793851410,-319.48608188,0.00013698,2]
[334140568,1722793851419,-500.0,0.00013698,2]
[334140570,1722793851430,-500.0,0.00013698,2]
[334140572,1722793851446,-500.0,0.00013698,2]
[334140574,1722793851456,-500.0,0.00013698,2]
[334140576,1722793851465,-500.0,0.00013698,2]
[334140578,1722793851474,-151.0,0.00013698,2]
[334140580,1722793851484,-500.0,0.00013698,2]
[334140582,1722793851493,-151.0,0.00013698,2]
[334140584,1722793851516,-550.78,0.00013698,2]
[334140586,1722793851526,-1735.37,0.00013698,2]
[334140588,1722793851535,-609.04178747,0.00013698,2]
[334140590,1722793851546,-500.0,0.00013698,2]
[334140592,1722793851555,-502.50149679,0.00013698,2]
[334140594,1722793851564,-599.24,0.00013698,2]
[334140596,1722793851574,-500.0,0.00013698,2]
[334140598,1722793851584,-200.25906629,0.00013698,2]
[334140600,1722793851594,-1052.69,0.00013698,2]
[334140602,1722793851604,-500.0,0.00013698,2]
[334140604,1722793851613,-500.0,0.00013698,2]
[334140606,1722793851622,-3734.85,0.00013698,2]
[334140608,1722793851632,-500.0,0.00013698,2]
[334140610,1722793851641,-672.78,0.00013698,2]
[334140612,1722793851650,-623.37,0.00013698,2]
[334140614,1722793851660,-560.5255973,0.00013698,2]
[334140616,1722793851669,-500.0,0.00013698,2]
[334140618,1722793851678,-569.47,0.00013698,2]
[334140620,1722793851687,-500.0,0.00013698,2]
[334140622,1722793851697,-151.0,0.00013698,2]
[334140624,1722793851706,-151.0,0.00013698,2]
[334140626,1722793851719,-500.0,0.00013698,2]
[334140628,1722793851729,-500.0,0.00013698,2]
[334140630,1722793851738,-500.0,0.00013698,2]
[334140632,1722793851749,-500.0,0.00013698,2]
[334140634,1722793851768,-500.0,0.00013698,2]
[334140636,1722793851777,-500.0,0.00013698,2]
[334140638,1722793851787,-500.0,0.00013698,2]
[334140640,1722793851796,-500.0,0.00013698,2]
[334140642,1722793851806,-500.0,0.00013698,2]
[334140644,1722793851816,-582.02,0.00013698,2]
[334140646,1722793851825,-849.51,0.00013698,2]
[334140648,1722793851834,-500.0,0.00013698,2]
[334140650,1722793851843,-151.0,0.00013698,2]
[334140652,1722793851853,-151.0,0.00013698,2]
[334140654,1722793851862,-446.84523942,0.00013698,2]
[334140656,1722793851871,-302.9332497,0.00013699,2]
[334140658,1722793851880,-3000.0,0.00013699,2]
[334140660,1722793851889,-1825.453941,0.00013699,2]
[334140662,1722793851899,-150.112233,0.000137,2]
[334140664,1722793851908,-150.112233,0.000137,2]
[334140666,1722793851916,-200.0,0.00013773,2]
[334140668,1722793851926,-151.0,0.00013789,2]
[334140670,1722793851935,-237.209571,0.00013789,2]
[334140671,1722793851944,-151.0,0.00013789,2]
[334140673,1722793851953,-151.0,0.00013789,2]
[334140675,1722793851962,-151.0,0.0001379,2]
[334140677,1722793851972,-63870.0461735,0.0001379,2]
[334140679,1722793851981,-380.463093,0.0001379,2]